Cogmind - Beta 9.6 @@@ ROGUE MODE // 2020.05.19 @ 02:40:40 // Halloween2019/Abominations Player: Judas Result: Destroyed by Lesser Abomination with Etherial Claws Performance ------------- Evolutions (0) 0 Regions Visited (1) 200 Robots Destroyed (6) 30 Value Destroyed (293) 293 Prototype IDs (0) 0 Alien Tech Used (0) 0 Bonus (0) 0 TOTAL SCORE: 523 Bonus ------- None Cogmind --------- Core Integrity 0/250 Matter 266/300 Energy 125/125 System Corruption 3% Temperature Cool (0) Movement Treading (160) Location -10/Materials Parts ------- > --- POWER (1) -------- Light Ion Engine > --- PROPULSION (2) --- Light Treads Light Treads > --- UTILITY (2) ------ Small Storage Unit Small Storage Unit > --- WEAPON (2) ------- (None) > --- INVENTORY (8) ---- Wheel Compact Wheel Peak State ------------ > --- POWER ------------ Light Ion Engine > --- PROPULSION ------- Aluminum Leg Aluminum Leg > --- UTILITY ---------- Small Storage Unit Small Storage Unit > --- WEAPON ----------- Light Assault Rifle Light Assault Rifle > --- INVENTORY -------- Light Ion Engine Light Treads Light Treads Wheel Compact Wheel Light Assault Rifle [Rating: 7] Favorites ----------- Power Light Ion Engine Engine Light Ion Engine Propulsion Aluminum Leg Treads Light Treads Leg Aluminum Leg Utility Small Storage Unit Storage Small Storage Unit Weapon Light Assault Rifle Ballistic Gun Light Assault Rifle Launcher Grenade Launcher Build | -11 -10 ------- Run | Scr Mat Slots Evolved . | . . Power . | . . Propulsion . | . . Utility . | . . Weapon . | . . Parts Attached 6 | 1 5 Power 1 | . 1 Engine 1 | . 1 Core . | . . Reactor . | . . Propulsion 2 | . 2 Treads 2 | . 2 Leg . | . . Wheel . | . . Hover . | . . Flight . | . . Utility 1 | 1 . Device . | . . Storage 1 | 1 . Processor . | . . Hackware . | . . Protection . | . . Artifact . | . . Weapon 2 | . 2 Energy Gun . | . . Energy Cannon . | . . Ballistic Gun 1 | . 1 Ballistic Cannon . | . . Launcher 1 | . 1 Special Weapon . | . . Impact Weapon . | . . Slashing Weapon . | . . Piercing Weapon . | . . Special Melee Weapon . | . . Unidentified Prototypes . | . . Parts Lost 7 | . 7 Power 1 | . 1 Propulsion 2 | . 2 Utility . | . . Weapon 4 | . 4 Highest Loss Streak 6 | . 6 Average Slot Usage (%) 92 | . 92 Engine 12 | . 12 Treads 6 | . 6 Leg 21 | . 21 Storage 28 | . 28 Ballistic Gun 21 | . 21 Naked Turns . | . . Heaviest Build 13 | 13 13 Greatest Support 40 | 20 40 Greatest Overweight (x) . | . . Average Overweight (x) . | . . Largest Inventory Capacity 8 | 8 8 Average Capacity 7 | 7 8 Most Carried 7 | 6 7 Average Carried 5 | 6 5 Final Capacity 8 | 8 8 Final Carried 6 | 6 2 Class Distribution -------------------- 100% | Mutant Dominant Class ---------------- Mutant | -10/Materials Resources | -11 -10 ----------- Run | Scr Mat Matter Collected 266 | 218 48 Remotely . | . . Salvage Created 276 | 85 191 Parts 15 | 2 13 Haulers Intercepted . | . . Recyclers Shooed 1 | . 1 Parts Field Recycled . | . . Retrieved Matter . | . . Parts Self-Destructed . | . . Prevented . | . . Kills | -11 -10 ------- Run | Scr Mat Combat Hostiles Destroyed 5 | . 5 Guns 4 | . 4 AOE 1 | . 1 Classes Destroyed 3 | 1 2 Recycler 1 | 1 . Grunt 1 | . 1 Abomination 4 | . 4 Best Kill Streak 2 | 1 2 Combat Bots Only 2 | . 2 Max Kills in Single Turn 1 | 1 1 Gunslinging . | . . Exploded 1 | . 1 Melee . | . . Uniques/NPCs Destroyed . | . . Combat | -11 -10 -------- Run | Scr Mat Damage Taken 1345 | . 1345 Core 278 | . 278 Absorbed by Shields . | . . Core Remaining (%) 100 | 100 . Volleys Fired 40 | 4 36 Largest 2 | 2 2 Hottest 40 | 40 40 Shots Fired 58 | 8 50 Gun 54 | 8 46 Cannon . | . . Launcher 4 | . 4 Special . | . . Kinetic 54 | 8 46 Thermal . | . . Explosive 4 | . 4 Electromagnetic . | . . Robot Hit Streak 20 | 4 20 Robot Miss Streak 3 | 1 3 Penetration Max . | . . Secondary Targets . | . . Shots Hit Robots 45 | 5 40 Core Hits 28 | 2 26 Critical Hits . | . . Critical Kills . | . . Critical Parts Destroyed . | . . Melee Attacks . | . . Impact . | . . Slashing . | . . Piercing . | . . Sneak Attacks . | . . Combat Hostiles . | . . Follow-up Attacks . | . . Damage Inflicted 600 | 49 551 Guns 362 | 49 313 Cannons . | . . Explosions 226 | . 226 Melee . | . . Ramming 12 | . 12 Kinetic 362 | 49 313 Thermal . | . . Explosive 226 | . 226 Electromagnetic . | . . Impact . | . . Slashing . | . . Piercing . | . . Highest Corruption 3 | . 3 Average Corruption 2 | . 2 Corruption Purged . | . . Effects 1 | . 1 Matter Fused 1 | . 1 Overload Shots . | . . Overflow Damage 17 | . 17 Projectiles . | . . Explosions 17 | . 17 Melee . | . . Knockbacks . | . . Impact . | . . Kinetic . | . . Secondary . | . . Self-Inflicted Damage 146 | . 146 Shots 4 | . 4 Rammed 7 | . 7 Targets Rammed 7 | . 7 Kicked . | . . Crushed . | . . Highest Temperature 9 | . 9 Average Temperature 9 | . 9 Received Heat Transfer 18 | . 18 Siege Activations . | . . Robots Corrupted . | . . Combat Hostiles . | . . Parts Fried . | . . Impact Corruptions . | . . Robots Melted . | . . Combat Hostiles . | . . Parts Melted . | . . Heat Transferred . | . . Parts Sabotaged . | . . Parts Stolen . | . . Parts Stripped . | . . Power Chain Reactions . | . . Missiles Intercepted . | . . Alert | -11 -10 ------- Run | Scr Mat Peak Influence 33 | 5 33 Average Influence 15 | 4 17 Maximum Alert Level . | . . Low Security (%) 100 | 100 100 Level 1 . | . . Level 2 . | . . Level 3 . | . . Level 4 . | . . Level 5 . | . . High Security . | . . Max Security . | . . Squads Dispatched 2 | . 2 Investigation 1 | . 1 Extermination . | . . Reinforcement 1 | . 1 Assault . | . . Garrison . | . . Intercept . | . . Construction Impeded . | . . Haulers Reinforced . | . . Stealth | -11 -10 --------- Run | Scr Mat Distress Signals . | . . Communications Jammed . | . . Distress Signals . | . . Times Spotted 7 | . 7 Peak Tracking Total 3 | . 3 Tactical Retreats 1 | . 1 Traps | -11 -10 ------- Run | Scr Mat Traps Triggered 1 | . 1 Indirectly . | . . Trap Hack Attempts . | . . Triggered . | . . Disarmed . | . . Reprogrammed . | . . Reused . | . . Traps Extracted . | . . Installed . | . . Triggered . | . . Machines | -11 -10 ---------- Run | Scr Mat Machines Disabled . | . . Max in Single Turn . | . . Machines Sabotaged . | . . Garrisons Compromised . | . . Overloaded Fab Kills . | . . Fab Network Shutdowns . | . . Hacking | -11 -10 --------- Run | Scr Mat Machines Accessed . | . . Terminals . | . . Fabricators . | . . Repair Stations . | . . Recycling Units . | . . Scanalyzers . | . . Garrison Access . | . . Total Hacks . | . . Successful . | . . Failed . | . . Catastrophic . | . . Database Lockouts . | . . Manual . | . . Terminals . | . . Fabricators . | . . Repair Stations . | . . Recycling Units . | . . Scanalyzers . | . . Garrison Access . | . . Terminal Hacks . | . . Fabricator Hacks . | . . Repair Station Hacks . | . . Recycling Unit Hacks . | . . Scanalyzer . | . . Garrison Access Hacks . | . . Unauthorized Hacks . | . . Terminals . | . . Fabricators . | . . Repair Stations . | . . Recycling Units . | . . Scanalyzers . | . . Garrison Access . | . . Data Cores Recovered . | . . Used . | . . Hacking Detections . | . . Full Trace Events . | . . Feedback Events . | . . Feedback Blocked . | . . Robot Schematics Acquired . | . . Robots Built . | . . Matter . | . . Time . | . . Total Robot Build Rating . | . . Part Schematics Acquired . | . . Parts Built . | . . Matter . | . . Time . | . . Total Part Build Rating . | . . Parts Repaired . | . . Time . | . . Parts Recycled . | . . Recycled Matter . | . . Retrieved Matter . | . . Retrieved Components . | . . Parts Scanalyzed . | . . Part Schematics Acquired . | . . Parts Damaged . | . . Bothacking | -11 -10 ------------ Run | Scr Mat Used RIF Installer . | . . Robots Hacked . | . . Non-combat . | . . Combat . | . . Robot Hacks Applied . | . . Relay Couplers Released . | . . Robots Rewired . | . . Allies Hacked . | . . Hacks Repelled . | . . Allies | -11 -10 -------- Run | Scr Mat Total Allies . | . . Largest Group . | . . Highest-Rated Group . | . . Highest-Rated Ally . | . . Total Orders . | . . Ally Attacks . | . . Total Damage . | . . Kills . | . . Allies Corrupted . | . . Allies Melted . | . . Intel | -11 -10 ------- Run | Scr Mat Robot Analysis Total . | . . Derelict Logs Recovered . | . . Drone Launches . | . . Drone Recoveries . | . . Exploration | -11 -10 ------------- Run | Scr Mat Turns Passed 237 | 23 214 Spaces Moved 105 | 10 95 Core . | . . Treads 15 | . 15 Legs 90 | 10 80 Wheels . | . . Hover . | . . Flight . | . . Fastest Speed 120 | 120 120 Average Speed 125 | 120 126 Slowest Speed 160 | 120 160 Overloaded Moves . | . . Propulsion Burnouts . | . . Robots Hopped . | . . Cave-ins Triggered . | . . Exploration Rate (%) 11 | 2 20 Regions Visited 1 Branch Regions . Pre-discovered Areas . | . . Known Exits Taken . | . . Unknown Exits Taken 1 | 1 . Scrap Searched . | . . Spaces Dug . | . . Terrain Destroyed 24 | . 24 Melee . | . . Projectile . | . . AOE 24 | . 24 Actions | -11 -10 --------- Run | Scr Mat Total 158 | 14 144 Wait . | . . Move 104 | 9 95 Hop . | . . Pick Up 1 | . 1 Fast Attach 1 | 1 . Attach 5 | . 5 Detach . | . . Swap . | . . Drop . | . . Fire 40 | 4 36 Melee . | . . Ram . | . . Kick . | . . Crush 7 | . 7 Escape Stasis . | . . Rewire . | . . Trap . | . . Miscellaneous . | . . Route ------- -11/Scrapyard -10/Materials History --------- Turn | Location | Event 7 | -11/Scrapyard | Discovered new exit (range 3) 24 | -11/Scrapyard | Entered Materials 187 | -10/Materials | Core integrity fell below 50% 212 | -10/Materials | Lost 6 parts (1p2n3w) 232 | -10/Materials | Core integrity fell below 20% 238 | -10/Materials | Destroyed by Lesser Abomination with Etherial Claws Last Messages --------------- 00181_ Destroyed Grenade Launcher. 00181_ Aluminum Leg destroyed. 00181_ Destroyed Aluminum Leg. 00181_ Aluminum Leg destroyed. 00181_ Destroyed Aluminum Leg. 00181_ Destroyed Lgt. Ion Engine. 00182_ Hungry Anomaly eats Sensor Array. 00185_ The unstable cave ceiling collapses. 00191_ Lesser Abomination destroyed. 00192_ Parts repaired by Paradox Anomaly. 00194_ Hungry Anomaly eats Structural Scanner. 00194_ Acquired 40 matter. 00214_ System corrupted: Matter fused (-6). 00218_ Lesser Abomination spits out Sml. Storage Unit. 00218_ Lesser Abomination absorbs Hcp. Storage Unit. 00224_ Critical hit. 00224_ Lgt. Assault Rifle destroyed. 00224_ Slammed into Lesser Abomination. 00229_ Hungry Anomaly eats Sml. Storage Unit. 00229_ Slammed into Lesser Abomination. Map ----- +----------------------------------------------------+ | | | | | | | | | | | | | | | ?????????????????????????????????????????????????? | | ?????????????????????????????????????????????????? | | ?????????????????????????????????????????????????? | | ?????????????????????????????????????????????????? | | ?????????????????????????????????????????????????? | | ?????????????????????????????????????????????????? | | ?????????????????????????????????????????????????? | | ?????????????????????????????????????????????????? | | ?????????????????????????????????????????????????? | | ?????????????????????????????????????????????????? | | ??????????????????????####???????????????????????? | | ??????????????????????# ?????#????????????????? | | ??????????????????# ??# """"""" #????????????????? | | ??????????????????# ?# """"""" #????????????????? | | ??????????????????? # """"""" #????????????????? | | ????????????????????? + """"""" #????????????????? | | ??????????????????????#%""""""" #????????????????? | | ??????????????????????# #????????????????? | | ??????????????????????# A@ #????????????????? | | ??????????????????????######+#######?????????????? | | ??????????????????????##### # #?????????? | | ??????????????????????# # + / ?????? | | ??????????????????????# # # # ?????? | | ??????????????????# # # #?? ??????????? | | ??????????????????# / #?# ??????????? | | ??????????????????# # ### #?# ??????????? | | ??????????????????#???##### #?# ??????????? | | ??????????????????????##### % #?# #?????????? | | ??????????????????????##### #?# #?????????? | | ?????????????????????????###+###+###?# #?????????? | | ???????????????????????????# #?# #???# #?????????? | | ???????????????????????????#%#?# #???# #?????????? | | ???????????????????????????# #?# #???#%#####?????? | | ???????????????????????????# ### ##### ####### | | ???????????????????????????# %% % | | ???????????????????????##### ^ | | ????????????????????# %= | | ????????????????????# ########## ##### ####### | | ??????????????????????????######+###### ######## | | ??????????????????????????# ! # # | | ??????????????????????????# == # # """ | | ??????????????????????????# =% ==] + # """" | | ??????????????????????????# = = # # """" | +----------------------------------------------------+ Best States ------------- Heat Dissipation 25 Energy Generation 10 Energy Capacity 125 Matter Stores 300 Matter Capacity 300 Sight Range 16 Terrain Scan Density 10 Evasion (%) 40 Recoil Reduction 2 Item Schematics ----------------- None Robot Schematics ------------------ None Fabricated ------------ Nothing Alien Tech Used ----------------- None Achievements -------------- None Challenges ------------ None Game ------ Seed NetworkInsulationTorch Manual? 0 Play Time 00:07:15 Cumulative 66.0 hours Start 2020.05.19 @ 01:51:42 End 2020.05.19 @ 02:40:40 Sessions 1 Manual Loads 0 Difficulty Rogue Special Mode Halloween2019/Abominations Game No. 122 Rogue 122 Adventurer 0 Explorer 0 Win Type - Total 0 Types 0/0/0/0/0/0/0 Lore% 32 Gallery% 44 Achievement% 32 Wizard Run 0 Options --------- ASCII 0 Keyboard 0 Movement Mouse Keybinds 0 Fullscreen 2 Font 18/SmallcapsGlow Map View 76x50 Tactical HUD 1 Map Filters NONE Filters NONE Steam 1 RUN: 9facd5d2-c593-49fa-a6a2-3c42952587bc